fUST/lending_fUST_20240925
["ID","MTS","AMOUNT","RATE_DAILY","PERIOD"]
[339072357,1727200255787,-397.538521,0.00026,7]
[339072358,1727200255796,-652.374896,0.00026,7]
[339072359,1727200255805,-397.538521,0.00026,7]
[339072360,1727200255814,-151.0,0.00026,7]
[339072361,1727200255823,-344.477916,0.00026,7]
[339072362,1727200255832,-344.477916,0.00026,7]
[339072363,1727200255842,-2796.65177,0.00026,7]
[339072364,1727200255851,-151.0,0.00026,7]
[339072365,1727200255860,-2796.65177,0.00026,7]
[339072366,1727200255869,-400.870378,0.00026,7]
[339072367,1727200255879,-423.104078,0.00026,7]
[339072368,1727200255888,-400.870378,0.00026,7]
[339072369,1727200255897,-423.104078,0.00026,7]
[339072370,1727200255906,-566.381994,0.00026,7]
[339072371,1727200255915,-566.381994,0.00026,7]
[339072372,1727200255924,-619.783301,0.00026,7]
[339072373,1727200255933,-619.783301,0.00026,7]
[339072374,1727200255943,-151.0,0.00026,7]
[339072375,1727200255952,-150.37858642,0.0002601,2]
[339072376,1727200255961,-600.0,0.00026013,2]
[339072377,1727200255970,-600.0,0.00026013,2]
[339072378,1727200255979,-600.0,0.00026013,2]
[339072379,1727200255988,-600.0,0.00026013,2]
[339072380,1727200255997,-600.0,0.00026013,2]
[339072381,1727200256006,-600.0,0.00026013,2]
[339072382,1727200256015,-600.0,0.00026013,2]
[339072383,1727200256024,-600.0,0.00026013,2]
[339072384,1727200256035,-600.0,0.00026013,2]
[339072385,1727200256046,-600.0,0.00026013,2]
[339072386,1727200256057,-600.0,0.00026013,2]
[339072387,1727200256066,-600.0,0.00026013,2]
[339072388,1727200256075,-600.0,0.00026013,2]
[339072389,1727200256085,-177.0,0.00026013,2]
[339072390,1727200256094,-177.0,0.00026013,2]
[339072391,1727200256104,-177.0,0.00026013,2]
[339072392,1727200256113,-177.0,0.00026013,2]
[339072393,1727200256122,-177.0,0.00026013,2]
[339072394,1727200256132,-177.0,0.00026013,2]
[339072395,1727200256141,-177.0,0.00026013,2]
[339072396,1727200256150,-177.0,0.00026013,2]
[339072397,1727200256160,-177.0,0.00026013,2]
[339072398,1727200256170,-177.0,0.00026013,2]
[339072399,1727200256179,-177.0,0.00026013,2]
[339072400,1727200256188,-177.0,0.00026013,2]
[339072401,1727200256197,-600.0,0.00026013,2]
[339072402,1727200256206,-600.0,0.00026013,2]
[339072403,1727200256215,-600.0,0.00026013,2]
[339072404,1727200256224,-600.0,0.00026013,2]
[339072405,1727200256234,-600.0,0.00026013,2]
[339072406,1727200256244,-600.0,0.00026013,2]
[339072407,1727200256254,-600.0,0.00026013,2]
[339072408,1727200256263,-600.0,0.00026013,2]
[339072409,1727200256273,-600.0,0.00026013,2]
[339072410,1727200256282,-600.0,0.00026013,2]
[339072411,1727200256291,-600.0,0.00026013,2]
[339072412,1727200256300,-600.0,0.00026013,2]
[339072413,1727200256310,-600.0,0.00026013,2]
[339072414,1727200256319,-600.0,0.00026013,2]
[339072415,1727200256328,-306.0,0.00026019,2]
[339072416,1727200256338,-165.0,0.0002604,14]
[339072417,1727200256355,-150.112233,0.000261,7]
[339072418,1727200256366,-660.0,0.00026301,2]
[339072419,1727200256375,-500.0,0.00026377,120]
[339072420,1727200256384,-500.0,0.00026377,120]
[339072421,1727200256393,-500.0,0.00026377,120]
[339072422,1727200256402,-500.0,0.00026377,120]
[339072423,1727200256411,-500.0,0.00026377,120]
[339072424,1727200256421,-500.0,0.00026377,120]
[339072425,1727200256430,-500.0,0.00026377,120]
[339072426,1727200256439,-500.0,0.00026377,120]
[339072427,1727200256449,-500.0,0.00026377,120]
[339072428,1727200256459,-500.0,0.00026377,120]
[339072429,1727200256470,-500.0,0.00026377,120]
[339072430,1727200256479,-500.0,0.00026377,120]
[339072431,1727200256488,-500.0,0.00026377,120]
[339072432,1727200256497,-500.0,0.00026377,120]
[339072433,1727200256507,-500.0,0.00026377,120]
[339072434,1727200256517,-251.04785625,0.00026377,120]
[339072435,1727200264268,500.0,0.00018773,2]
[339072458,1727201349095,-338.406612,0.00017376,2]
[339072459,1727201349117,-250.0,0.00017767,2]
[339072460,1727201349142,-250.0,0.000179,2]
[339072461,1727201349163,-250.0,0.0001795,2]
[339072462,1727201349184,-250.0,0.00017999,2]
[339072463,1727201349205,-300.0,0.00017999,2]
[339072464,1727201349226,-300.0,0.00017999,2]
[339072465,1727201349247,-4332.024404,0.00018,2]
[339072588,1727201438198,-300.0,0.00017999,2]
[339072590,1727201438208,-300.0,0.00017999,2]
[339072592,1727201438218,-14848.975596,0.00018,2]
[339072594,1727201438228,-250.0,0.00018048,2]
[339072596,1727201438237,-250.0,0.00018097,2]
[339072598,1727201438246,-250.0,0.00018146,2]
[339072600,1727201438256,-250.0,0.00018195,2]
[339072602,1727201438266,-250.0,0.00018244,2]
[339072604,1727201438276,-250.0,0.00018293,2]
[339072606,1727201438285,-250.0,0.00018342,2]
[339072608,1727201438295,-250.0,0.00018391,2]
[339072610,1727201438304,-250.0,0.0001844,2]
[339072611,1727201438314,-250.0,0.0001849,2]
[339072612,1727201438323,-250.0,0.00018539,2]
[339072613,1727201438333,-250.0,0.00018588,2]
[339072614,1727201438343,-500.0,0.00018609,2]
[339072615,1727201438353,-500.0,0.00018609,2]
[339072616,1727201438362,-500.0,0.00018609,2]
[339072617,1727201438372,-550.0,0.00018609,2]
[339072618,1727201438382,-500.0,0.00018609,2]
[339072619,1727201438391,-500.0,0.00018609,2]
[339072620,1727201438400,-500.0,0.00018609,2]
[339072621,1727201438410,-500.0,0.00018609,2]
[339072622,1727201438419,-6048.43168896,0.0001861,2]
[339072623,1727201438429,-250.0,0.00018637,2]
[339072624,1727201438442,-250.0,0.00018686,2]
[339072625,1727201438451,-176.2179228,0.00018709,2]
[339072626,1727201438461,-300.0,0.00018709,2]
[339072627,1727201438470,-500.0,0.00018709,2]
[339072628,1727201438479,-569.98559633,0.00018709,2]
[339072629,1727201438488,-442.25429374,0.00018709,2]
[339072630,1727201438498,-500.0,0.00018709,2]
[339072631,1727201438507,-500.0,0.00018709,2]
[339072632,1727201438517,-387.21877484,0.00018709,2]
[339072633,1727201438526,-88352.0683715,0.00018711,2]
[339072634,1727201438535,-5461.36709408,0.00018711,2]
[339072635,1727201438545,-24900.0,0.00018724,2]
[339072636,1727201438555,-250.0,0.00018735,2]
[339072637,1727201438564,-500.0,0.00018773,2]
[339072638,1727201438573,-250.0,0.00018784,2]
[339072639,1727201438582,-150.0,0.00018795,2]
[339072640,1727201438592,-176704.136743,0.00018818,2]
[339072641,1727201438605,-10922.7341882,0.00018818,3]
[339072642,1727201438614,-250.0,0.00018833,2]
[339072643,1727201438625,-3000.0,0.00018838,2]
[339072644,1727201438635,-182.0,0.00019,4]
[339072645,1727201438645,-88352.0683715,0.0001908,3]
[339072646,1727201438654,-5461.36709408,0.0001908,3]
[339072647,1727201438663,-410.460265,0.0001909,2]
[339072648,1727201438674,-410.460265,0.0001909,2]
[339072649,1727201438687,-151.0,0.0001909,2]
[339072650,1727201438696,-247.289007,0.0001909,2]
[339072651,1727201438705,-247.289007,0.0001909,2]
[339072652,1727201438716,-167.617186,0.00019178,2]
[339072653,1727201438725,-1000.0,0.00019321,2]
[339072654,1727201438735,-420.0,0.00019639,2]
[339072655,1727201438745,-420.0,0.00019799,2]
[339072656,1727201438754,-151.0,0.0002,2]
[339072657,1727201438764,-410.460265,0.0002,2]
[339072658,1727201438774,-410.460265,0.0002,2]
[339072659,1727201438783,-230.507307,0.0002,2]
[339072660,1727201438792,-230.507307,0.0002,2]
[339072661,1727201438801,-151.0,0.0002,2]
[339072662,1727201438811,-247.289007,0.0002,2]
[339072663,1727201438820,-247.289007,0.0002,2]
[339072664,1727201438829,-1500.0,0.00020322,2]
[339072665,1727201438840,-30110.72668045,0.00021,2]
[339072666,1727201438849,-1288.69077157,0.00021067,2]
[339072667,1727201438859,-27306.8354704,0.00021137,3]
[339072668,1727201438868,-2000.0,0.00021167,2]
[339072669,1727201438877,-2000.0,0.00021167,2]
[339072670,1727201438887,-2000.0,0.00021167,2]
[339072671,1727201438896,-2000.0,0.00021167,2]
[339072672,1727201438905,-2000.0,0.00021167,2]
[339072673,1727201438915,-2000.0,0.00021167,2]
[339072674,1727201438925,-2000.0,0.00021167,2]
[339072675,1727201438936,-2000.0,0.00021167,2]
[339072676,1727201438944,-2000.0,0.00021167,2]
[339072677,1727201438954,-2000.0,0.00021167,2]
[339072678,1727201438963,-587.0,0.00021428,2]
[339072679,1727201438973,-2000.0,0.0002162,2]
[339072680,1727201438982,-587.0,0.00021779,2]
[339072681,1727201438991,-6048.43168896,0.00021873,2]
[339072682,1727201439000,-166.666666,0.00021918,2]
[339072683,1727201439009,-166.666666,0.00022431,2]
[339072684,1727201439019,-16384.1012822,0.00022634,3]
[339072685,1727201439028,-166.666666,0.00022944,2]
[339072686,1727201439038,-302.48582854,0.00023,2]
[339072687,1727201439050,-2500.0,0.00023156,2]
[339072688,1727201439060,-302.48582854,0.0002323,2]
[339072689,1727201439069,-2000.0,0.00023233,2]
[339072690,1727201439080,-151.0,0.00023234,7]
[339072691,1727201439089,-410.460265,0.00023234,7]
[339072692,1727201439099,-410.460265,0.00023234,7]
[339072693,1727201439108,-230.507307,0.00023234,7]
[339072694,1727201439117,-151.0,0.00023234,7]
[339072695,1727201439127,-230.507307,0.00023234,7]
[339072696,1727201439136,-151.0,0.00023234,7]
[339072697,1727201439146,-247.289007,0.00023234,7]
[339072698,1727201439156,-247.289007,0.00023234,7]
[339072699,1727201439165,-181.2,0.00023234,7]
[339072700,1727201439174,-181.2,0.00023234,7]
[339072701,1727201439182,-823.0,0.00023381,2]
[339072702,1727201439193,-1288.69077154,0.00023382,2]
[339072703,1727201439205,-166.666666,0.00023456,2]
[339072704,1727201439215,-302.48582854,0.0002346,2]
[339072705,1727201439226,-150.112234,0.000235,2]
[339072706,1727201439234,-302.48582854,0.0002369,2]
[339072707,1727201439244,-500.0,0.0002375,2]
[339072708,1727201439253,-254.04,0.00023889,2]
[339072709,1727201439262,-302.48582854,0.0002392,2]
[339072710,1727201439271,-823.0,0.00023957,2]
[339072711,1727201439280,-166.666666,0.00023969,2]
[339072712,1727201439289,-10922.7341882,0.0002397,3]
[339072713,1727201439298,-2000.0,0.00023989,2]
[339072714,1727201439308,-2000.0,0.00023989,2]
[339072715,1727201439317,-2000.0,0.00023989,2]
[339072716,1727201439326,-2000.0,0.00023989,2]
[339072718,1727201439435,-232.9160658,0.0002415,4]
[339072720,1727201439470,-5461.36709408,0.00024288,3]
[339072721,1727201439480,-500.0,0.00024298,2]
[339072723,1727201439489,-150.0,0.000244,2]
[339072724,1727201439498,-150.112233,0.000244,3]
[339072725,1727201439507,-572.696,0.00024482,7]
[339072726,1727201439516,-166.666666,0.00024482,2]
[339072727,1727201439526,-380.0,0.00024658,2]
[339072728,1727201439535,-2088.96176104,0.00024899,2]
[339072729,1727201439544,-500.0,0.000249,2]
[339072730,1727201439553,-151.0,0.00025,7]
[339072731,1727201439562,-410.460265,0.00025,7]
[339072732,1727201439571,-410.460265,0.00025,7]
[339072733,1727201439581,-230.507307,0.00025,7]
[339072735,1727201439590,-151.0,0.00025,7]
[339072736,1727201439601,-230.507307,0.00025,7]
[339072738,1727201439611,-151.0,0.00025,7]
[339072740,1727201439620,-247.289007,0.00025,7]
[339072742,1727201439630,-247.289007,0.00025,7]
[339072744,1727201439639,-181.2,0.00025,7]
[339072745,1727201439649,-181.2,0.00025,7]
[339072747,1727201439658,-153.0,0.00025008,2]
[339072749,1727201439668,-153.0,0.00025008,2]
[339072750,1727201439677,-153.0,0.00025008,2]
[339072751,1727201439688,-153.0,0.00025008,2]
[339072752,1727201439697,-153.0,0.00025008,2]
[339072754,1727201439706,-153.0,0.00025008,2]
[339072756,1727201439715,-153.0,0.00025008,2]
[339072758,1727201439725,-153.0,0.00025008,2]
[339072760,1727201439734,-153.0,0.00025008,2]
[339072761,1727201439747,-153.0,0.00025008,2]
[339072762,1727201439756,-153.0,0.00025008,2]
[339072763,1727201439766,-153.0,0.00025008,2]
[339072764,1727201439775,-153.0,0.00025008,2]
[339072765,1727201439785,-153.0,0.00025008,2]
[339072766,1727201439794,-153.0,0.00025008,2]
[339072767,1727201439803,-153.0,0.00025008,2]
[339072768,1727201439813,-153.0,0.00025008,2]
[339072769,1727201439822,-153.0,0.00025008,2]
[339072770,1727201439831,-153.0,0.00025008,2]
[339072771,1727201439840,-153.0,0.00025008,2]
[339072772,1727201439849,-153.0,0.00025008,2]
[339072773,1727201439858,-153.0,0.00025008,2]
[339072774,1727201439867,-153.0,0.00025008,2]
[339072775,1727201439877,-153.0,0.00025008,2]
[339072776,1727201439886,-153.0,0.00025008,2]
[339072777,1727201439895,-153.0,0.00025008,2]
[339072778,1727201439904,-153.0,0.00025008,2]
[339072779,1727201439913,-160.0,0.00025008,2]
[339072780,1727201439923,-160.0,0.00025008,2]
[339072782,1727201439932,-160.0,0.00025008,2]
[339072784,1727201439949,-160.0,0.00025008,2]
[339072786,1727201439958,-160.0,0.00025008,2]
[339072787,1727201439967,-160.0,0.00025008,2]
[339072789,1727201439977,-160.0,0.00025008,2]
[339072791,1727201439987,-160.0,0.00025008,2]
[339072793,1727201439996,-160.0,0.00025008,2]
[339072795,1727201440005,-160.0,0.00025008,2]
[339072797,1727201440014,-160.0,0.00025008,2]
[339072799,1727201440023,-160.0,0.00025008,2]
[339072800,1727201440033,-160.0,0.00025008,2]
[339072802,1727201440042,-160.0,0.00025008,2]
[339072804,1727201440051,-160.0,0.00025008,2]
[339072806,1727201440060,-160.0,0.00025008,2]
[339072808,1727201440070,-160.0,0.00025008,2]
[339072810,1727201440079,-160.0,0.00025008,2]
[339072811,1727201440088,-160.0,0.00025008,2]
[339072812,1727201440097,-160.0,0.00025008,2]
[339072813,1727201440106,-160.0,0.00025008,2]
[339072814,1727201440115,-160.0,0.00025008,2]
[339072815,1727201440124,-160.0,0.00025008,2]
[339072816,1727201440133,-160.0,0.00025008,2]
[339072817,1727201440142,-160.0,0.00025008,2]
[339072818,1727201440152,-160.0,0.00025008,2]
[339072819,1727201440161,-160.0,0.00025008,2]
[339072820,1727201440170,-160.0,0.00025008,2]
[339072821,1727201440179,-160.0,0.00025008,2]
[339072822,1727201440190,-160.0,0.00025008,2]
[339072823,1727201440200,-160.0,0.00025008,2]
[339072824,1727201440210,-160.0,0.00025008,2]
[339072825,1727201440221,-160.0,0.00025008,2]
[339072826,1727201440231,-160.0,0.00025008,2]
[339072827,1727201440241,-160.0,0.00025008,2]
[339072828,1727201440254,-160.0,0.00025008,2]
[339072829,1727201440265,-160.0,0.00025008,2]
[339072830,1727201440274,-160.0,0.00025008,2]
[339072831,1727201440284,-160.0,0.00025008,2]
[339072832,1727201440292,-160.0,0.00025008,2]
[339072833,1727201440301,-160.0,0.00025008,2]
[339072834,1727201440310,-160.0,0.00025008,2]
[339072835,1727201440319,-160.0,0.00025008,2]
[339072836,1727201440328,-153.0,0.00025008,2]
[339072837,1727201440337,-153.0,0.00025008,2]
[339072838,1727201440347,-153.0,0.00025008,2]
[339072839,1727201440356,-153.0,0.00025008,2]
[339072840,1727201440365,-153.0,0.00025008,2]
[339072841,1727201440373,-153.0,0.00025008,2]
[339072842,1727201440383,-153.0,0.00025008,2]
[339072843,1727201440392,-153.0,0.00025008,2]
[339072844,1727201440401,-153.0,0.00025008,2]
[339072845,1727201440411,-153.0,0.00025008,2]
[339072846,1727201440420,-153.0,0.00025008,2]
[339072847,1727201440431,-153.0,0.00025008,2]
[339072848,1727201440441,-178.0,0.00025008,2]
[339072849,1727201440451,-178.0,0.00025008,2]
[339072850,1727201440461,-178.0,0.00025008,2]
[339072851,1727201440470,-178.0,0.00025008,2]
[339072852,1727201440479,-178.0,0.00025008,2]
[339072853,1727201440488,-178.0,0.00025008,2]
[339072854,1727201440497,-178.0,0.00025008,2]
[339072855,1727201440506,-178.0,0.00025008,2]
[339072856,1727201440515,-178.0,0.00025008,2]
[339072857,1727201440525,-178.0,0.00025008,2]
[339072858,1727201440534,-178.0,0.00025008,2]
[339072859,1727201440543,-178.0,0.00025008,2]
[339072860,1727201440552,-178.0,0.00025008,2]
[339072861,1727201440562,-178.0,0.00025008,2]
[339072862,1727201440571,-178.0,0.00025008,2]
[339072863,1727201440581,-178.0,0.00025008,2]
[339072864,1727201440590,-178.0,0.00025008,2]
[339072865,1727201440602,-178.0,0.00025008,2]
[339072866,1727201440611,-178.0,0.00025008,2]
[339072867,1727201440620,-153.0,0.00025008,2]
[339072868,1727201440630,-153.0,0.00025008,2]
[339072869,1727201440639,-153.0,0.00025008,2]
[339072870,1727201440648,-153.0,0.00025008,2]
[339072871,1727201440658,-153.0,0.00025008,2]
[339072872,1727201440667,-153.0,0.00025008,2]
[339072873,1727201440678,-153.0,0.00025008,2]
[339072874,1727201440690,-153.0,0.00025008,2]
[339072875,1727201440699,-153.0,0.00025008,2]
[339072876,1727201440707,-178.0,0.00025008,2]
[339072877,1727201440719,-178.0,0.00025008,2]
[339072878,1727201440729,-178.0,0.00025008,2]
[339072879,1727201440740,-178.0,0.00025008,2]
[339072880,1727201440751,-178.0,0.00025008,2]
[339072881,1727201440760,-178.0,0.00025008,2]
[339072882,1727201440769,-178.0,0.00025008,2]
[339072883,1727201440778,-178.0,0.00025008,2]
[339072884,1727201440787,-178.0,0.00025008,2]
[339072885,1727201440796,-178.0,0.00025008,2]
[339072886,1727201440806,-178.0,0.00025008,2]
[339072887,1727201440816,-178.0,0.00025008,2]
[339072888,1727201440825,-178.0,0.00025008,2]
[339072889,1727201440835,-178.0,0.00025008,2]
[339072890,1727201440844,-178.0,0.00025008,2]
[339072891,1727201440854,-178.0,0.00025008,2]
[339072892,1727201440863,-178.0,0.00025008,2]
[339072893,1727201440872,-178.0,0.00025008,2]
[339072894,1727201440881,-178.0,0.00025008,2]
[339072895,1727201440890,-153.0,0.00025008,2]
[339072896,1727201440899,-153.0,0.00025008,2]
[339072897,1727201440908,-153.0,0.00025008,2]
[339072898,1727201440917,-153.0,0.00025008,2]
[339072899,1727201440926,-153.0,0.00025008,2]
[339072900,1727201440935,-153.0,0.00025008,2]
[339072901,1727201440944,-178.0,0.00025008,2]
[339072902,1727201440952,-178.0,0.00025008,2]
[339072903,1727201440961,-178.0,0.00025008,2]
[339072904,1727201440970,-178.0,0.00025008,2]
[339072905,1727201440979,-178.0,0.00025008,2]
[339072906,1727201440988,-178.0,0.00025008,2]
[339072907,1727201440998,-178.0,0.00025008,2]
[339072908,1727201441007,-178.0,0.00025008,2]
[339072909,1727201441016,-178.0,0.00025008,2]
[339072910,1727201441025,-178.0,0.00025008,2]
[339072911,1727201441037,-178.0,0.00025008,2]
[339072912,1727201441048,-153.0,0.00025008,2]
[339072913,1727201441059,-153.0,0.00025008,2]
[339072914,1727201441069,-153.0,0.00025008,2]
[339072915,1727201441078,-153.0,0.00025008,2]
[339072916,1727201441087,-153.0,0.00025008,2]
[339072917,1727201441097,-153.0,0.00025008,2]
[339072918,1727201441106,-153.0,0.00025008,2]
[339072919,1727201441115,-153.0,0.00025008,2]
[339072920,1727201441124,-153.0,0.00025008,2]
[339072921,1727201441134,-153.0,0.00025008,2]
[339072922,1727201441143,-153.0,0.00025008,2]
[339072923,1727201441152,-153.0,0.00025008,2]
[339072924,1727201441161,-153.0,0.00025008,2]
[339072925,1727201441170,-153.0,0.00025008,2]
[339072926,1727201441179,-153.0,0.00025008,2]
[339072927,1727201441189,-153.0,0.00025008,2]
[339072928,1727201441198,-153.0,0.00025008,2]
[339072929,1727201441207,-153.0,0.00025008,2]
[339072930,1727201441216,-153.0,0.00025008,2]
[339072931,1727201441226,-153.0,0.00025008,2]
[339072932,1727201441235,-153.0,0.00025008,2]
[339072933,1727201441244,-153.0,0.00025008,2]
[339072934,1727201441254,-153.0,0.00025008,2]
[339072935,1727201441264,-153.0,0.00025008,2]
[339072936,1727201441273,-153.0,0.00025008,2]
[339072937,1727201441282,-153.0,0.00025008,2]
[339072938,1727201441291,-153.0,0.00025008,2]
[339072939,1727201441300,-153.0,0.00025008,2]
[339072940,1727201441309,-153.0,0.00025008,2]
[339072941,1727201441318,-153.0,0.00025008,2]
[339072942,1727201441327,-153.0,0.00025008,2]
[339072943,1727201441336,-153.0,0.00025008,2]
[339072944,1727201441345,-153.0,0.00025008,2]
[339072945,1727201441354,-153.0,0.00025008,2]
[339072946,1727201441363,-153.0,0.00025008,2]
[339072947,1727201441372,-153.0,0.00025008,2]
[339072948,1727201441381,-153.0,0.00025008,2]
[339072949,1727201441392,-153.0,0.00025008,2]
[339072950,1727201441403,-153.0,0.00025008,2]
[339072951,1727201441413,-153.0,0.00025008,2]
[339072952,1727201441424,-153.0,0.00025008,2]
[339072953,1727201441437,-153.0,0.00025008,2]
[339072954,1727201441446,-153.0,0.00025008,2]
[339072955,1727201441455,-153.0,0.00025008,2]
[339072956,1727201441464,-153.0,0.00025008,2]
[339072957,1727201441474,-153.0,0.00025008,2]
[339072958,1727201441483,-153.0,0.00025008,2]
[339072959,1727201441492,-153.0,0.00025008,2]
[339072960,1727201441605,-153.0,0.00025008,2]
[339072961,1727201441615,-500.0,0.00025012,2]
[339072962,1727201441624,-6048.43168896,0.00025137,2]
[339072963,1727201441633,-150.112233,0.000253,7]
[339072964,1727201441642,-500.0,0.0002535,2]
[339072965,1727201441651,-5461.36709408,0.00025438,3]
[339072966,1727201441660,-764.65191428,0.00025448,2]
[339072967,1727201441669,-1152.0,0.00025511,2]
[339072968,1727201441680,-695.58333689,0.0002556,2]
[339072969,1727201441692,-500.0,0.00025613,2]
[339072970,1727201441701,-1288.69077154,0.00025697,2]
[339072971,1727201441709,-5461.36709408,0.00025789,3]
[339072972,1727201441719,-63387.44409398,0.00025799,2]
[339072973,1727201441728,-166.0,0.0002585,13]
[339072974,1727201441738,-151.0,0.00025869,7]
[339072975,1727201441747,-410.460265,0.00025869,7]
[339072976,1727201441756,-410.460265,0.00025869,7]
[339072977,1727201441766,-230.507307,0.00025869,7]
[339072978,1727201441775,-151.0,0.00025869,7]
[339072979,1727201441784,-230.507307,0.00025869,7]
[339072980,1727201441793,-151.0,0.00025869,7]
[339072981,1727201441802,-247.289007,0.00025869,7]
[339072982,1727201441811,-300.0,0.00025869,2]
[339072983,1727201441820,-251.674451,0.00025869,2]
[339072984,1727201441830,-247.289007,0.00025869,7]
[339072985,1727201441839,-181.2,0.00025869,7]
[339072986,1727201441848,-181.2,0.00025869,7]
[339072987,1727201441857,-151.0,0.00025879,7]
[339072988,1727201441866,-410.460265,0.00025879,7]
[339072989,1727201441875,-410.460265,0.00025879,7]
[339072990,1727201441884,-230.507307,0.00025879,7]
[339072991,1727201441893,-151.0,0.00025879,7]
[339072992,1727201441903,-151.0,0.00025879,7]
[339072993,1727201441912,-230.507307,0.00025879,7]
[339072994,1727201441922,-247.289007,0.00025879,7]
[339072995,1727201441931,-247.289007,0.00025879,7]
[339072996,1727201441942,-181.2,0.00025879,7]
[339072997,1727201441951,-181.2,0.00025879,7]
[339072998,1727201441960,-150.0,0.00025879,2]
[339072999,1727201441969,-219.8,0.00025892,2]
[339073000,1727201441979,-153.0,0.00025892,2]
[339073001,1727201441988,-156.0,0.00025892,2]
[339073002,1727201441997,-153.0,0.00025892,2]
[339073003,1727201442006,-153.0,0.00025892,2]
[339073004,1727201442015,-1000.0,0.00025898,2]
[339073005,1727201442024,-151.0,0.000259,7]
[339073006,1727201442033,-410.460265,0.000259,7]
[339073007,1727201442042,-410.460265,0.000259,7]
[339073008,1727201442051,-230.507307,0.000259,7]
[339073009,1727201442060,-151.0,0.000259,7]
[339073010,1727201442069,-151.0,0.000259,7]
[339073011,1727201442079,-230.507307,0.000259,7]
[339073012,1727201442088,-247.289007,0.000259,7]
[339073013,1727201442097,-247.289007,0.000259,7]
[339073014,1727201442106,-181.2,0.000259,7]
[339073015,1727201442115,-181.2,0.000259,7]
[339073016,1727201442125,-4999.99999899,0.000259,2]
[339073017,1727201442134,-1000.0,0.000259,2]
[339073018,1727201442144,-150.0,0.00025906,2]
[339073019,1727201442153,-150.0,0.00025934,2]
[339073020,1727201442162,-150.0,0.00025961,2]
[339073021,1727201442171,-410.460265,0.00026,7]
[339073022,1727201442181,-410.460265,0.00026,7]
[339073023,1727201442192,-540.7,0.00026,31]
[339073024,1727201442201,-230.507307,0.00026,7]
[339073025,1727201442212,-151.0,0.00026,7]
[339073026,1727201442221,-232.440354,0.00026,7]
[339073027,1727201442230,-230.507307,0.00026,7]
[339073028,1727201442240,-247.289007,0.00026,7]
[339073029,1727201442249,-247.289007,0.00026,7]
[339073030,1727201442260,-181.2,0.00026,7]
[339073031,1727201442270,-181.2,0.00026,7]
[339073032,1727201442279,-1000.0,0.00026053,2]
[339073033,1727201442289,-198.84883037,0.00026053,2]
[339073034,1727201442298,-338.406612,0.00026064,2]
[339073035,1727201442308,-1000.0,0.00026078,2]
[339073036,1727201442318,-1000.0,0.0002609,2]
[339073037,1727201442327,-150.112233,0.000261,9]
[339073038,1727201442336,-1000.0,0.00026102,2]
[339073039,1727201442347,-174.34346224,0.0002615,2]